bitfinex-derivatives/quotes_BTCF0:USTF0_20250508
["timestamp","ask_amount","ask_price","bid_price","bid_amount"]
[1746736163775,0.1968208,101600.0,101590.0,0.0792]
[1746736163975,0.1968402,101590.0,101580.0,0.85708839]
[1746736164174,0.4684388,101590.0,101580.0,1.10428839]
[1746736164876,0.2715986,101590.0,101580.0,1.10428839]
[1746736165069,0.2715986,101590.0,101580.0,1.27228839]
[1746736165281,0.0792,101590.0,101580.0,1.10428839]
[1746736166283,0.0792,101590.0,101580.0,0.94605269]
[1746736166474,0.2760402,101590.0,101580.0,0.94605269]
[1746736166670,0.2760402,101590.0,101580.0,0.94805269]
[1746736167379,0.2760402,101590.0,101580.0,0.94805269]
[1746736168384,0.8292388,101590.0,101580.0,0.34227159]
[1746736168581,0.8704388,101590.0,101580.0,0.34227159]
[1746736168882,0.6780402,101590.0,101580.0,0.34227159]
[1746736169071,0.8704388,101590.0,101580.0,0.35200869]
[1746736169683,0.8704388,101590.0,101580.0,0.35000869]
[1746736169883,0.8724388,101590.0,101580.0,0.35000869]
[1746736170086,0.8724388,101590.0,101580.0,0.34027159]
[1746736170486,0.6800402,101590.0,101580.0,0.34027159]
[1746736170686,0.6800402,101590.0,101580.0,0.37977159]
[1746736170687,0.8724388,101590.0,101580.0,0.37977159]
[1746736171081,0.0812,101590.0,101580.0,0.37977159]
[1746736171287,0.04,101590.0,101580.0,0.74057159]
[1746736172084,0.04,101590.0,101580.0,0.75039057]
[1746736172484,0.002,101590.0,101580.0,0.75039057]
[1746736173383,0.0428,101590.0,101580.0,0.75039057]
[1746736174186,0.2351986,101590.0,101580.0,0.75039057]
[1746736174388,0.4320388,101590.0,101580.0,0.75039057]
[1746736174684,0.2741986,101590.0,101580.0,0.75039057]
[1746736174985,0.0818,101590.0,101580.0,0.75039057]
[1746736175289,0.2741986,101590.0,101580.0,0.75039057]
[1746736175584,0.4710388,101590.0,101580.0,0.75039057]
[1746736175785,0.5107388,101590.0,101580.0,0.75039057]
[1746736176188,0.5107388,101590.0,101580.0,0.75043057]
[1746736176485,0.3138986,101590.0,101580.0,0.75043057]
[1746736177085,0.5107388,101590.0,101580.0,0.75043057]
[1746736177285,0.5107388,101590.0,101580.0,0.77685259]
[1746736177486,0.5087388,101590.0,101580.0,0.77685259]
[1746736177788,0.3118986,101590.0,101580.0,0.77685259]
[1746736178087,0.3118986,101590.0,101580.0,0.77686274]
[1746736178287,0.3118986,101590.0,101580.0,0.76147573]
[1746736178487,0.1195,101590.0,101580.0,0.77686182]
[1746736178683,0.1195,101590.0,101580.0,0.77685048]
[1746736178884,0.1195,101590.0,101580.0,0.79369611]
[1746736179082,0.3163402,101590.0,101580.0,0.79369611]
[1746736179381,0.4592062,101610.0,101590.0,0.1968402]
[1746736179590,0.2742208,101600.0,101590.0,0.40317511]
[1746736180292,0.0774,101600.0,101590.0,0.44237467]
[1746736180593,0.0774,101600.0,101590.0,0.80317467]
[1746736180594,0.0386,101600.0,101590.0,0.80317467]
[1746736180887,0.2396014,101610.0,101600.0,0.1968208]
[1746736181076,0.4723,101610.0,101600.0,0.06441947]
[1746736181688,0.8331,101610.0,101600.0,0.06441947]
[1746736182487,0.8311,101610.0,101600.0,0.06440148]
[1746736182993,0.8291,101610.0,101600.0,0.06440148]
[1746736183192,1.3771,101610.0,101600.0,0.02640148]
[1746736183392,0.1968208,101600.0,101590.0,0.4627669]
[1746736183592,0.2764208,101600.0,101590.0,0.83980805]
[1746736183786,0.2764208,101600.0,101590.0,0.82878437]
[1746736184690,0.2764208,101600.0,101590.0,0.82878519]
[1746736184892,0.0796,101600.0,101590.0,0.82878519]
[1746736185089,0.0404,101600.0,101590.0,0.99878519]
[1746736185592,0.2372208,101600.0,101590.0,0.79830055]
[1746736186091,0.0404,101600.0,101590.0,0.99110055]
[1746736186489,0.2372208,101600.0,101590.0,0.97571647]
[1746736186690,0.2372208,101600.0,101590.0,0.99110191]
[1746736186891,0.2372208,101600.0,101590.0,0.98908084]
[1746736187091,0.2749208,101600.0,101590.0,0.98908084]
[1746736188089,0.0404,101600.0,101590.0,0.98908084]
[1746736188292,0.0404,101600.0,101590.0,1.18956503]
[1746736188891,0.6949221,101610.0,101600.0,0.1968208]
[1746736189189,0.3993,101610.0,101600.0,0.2750208]
[1746736189389,0.3608,101610.0,101600.0,0.4674194]
[1746736190298,0.3608,101610.0,101600.0,0.6354194]
[1746736191499,0.6032928,101620.0,101610.0,0.1968014]
[1746736191799,0.6032928,101620.0,101610.0,0.3172014]
[1746736192392,0.2694986,101620.0,101610.0,0.3172014]
[1746736192594,0.0382,101620.0,101610.0,0.6780014]
[1746736192899,0.0382,101620.0,101610.0,0.8704]
[1746736193201,0.3611,101630.0,101620.0,0.1967821]
[1746736193498,0.0396,101630.0,101620.0,0.3758821]
[1746736193698,0.0003,101630.0,101620.0,0.9290807]
[1746736194101,0.0003,101630.0,101620.0,1.0970807]
[1746736194800,0.0043,101630.0,101620.0,1.0970807]
[1746736195497,0.0043,101630.0,101620.0,1.24723027]
[1746736196301,0.0063,101630.0,101620.0,1.24723027]
[1746736197002,0.0063,101630.0,101620.0,1.34327027]
[1746736198103,0.0063,101630.0,101620.0,1.1931207]
[1746736199804,0.0063,101630.0,101620.0,1.3931207]
[1746736200902,0.0063,101630.0,101620.0,1.0007221]
[1746736201097,0.0473,101630.0,101620.0,1.1251207]
[1746736201298,0.0063,101630.0,101620.0,1.1251207]
[1746736202206,0.0063,101630.0,101620.0,1.2931207]
[1746736204109,0.0063,101630.0,101620.0,0.9323207]
[1746736205515,0.0023,101630.0,101620.0,0.9323207]
[1746736205700,0.0003,101630.0,101620.0,1.1523207]
[1746736205906,0.0003,101630.0,101620.0,1.1543207]
[1746736206109,1e-07,101640.0,101630.0,0.1967627]
[1746736206405,0.09612908,101670.0,101660.0,0.1967047]
[1746736206612,0.0001,101670.0,101660.0,0.5640033]
[1746736207205,0.0001,101670.0,101660.0,0.74932458]
[1746736207512,0.0001,101670.0,101660.0,0.95012458]
[1746736208010,0.0041,101670.0,101660.0,0.25643759]
[1746736208203,0.7943839,101670.0,101660.0,0.2088]
[1746736208408,0.196724,101650.0,101640.0,0.0789]
[1746736208600,0.7499226,101650.0,101640.0,0.0767]
[1746736208806,0.8262226,101650.0,101640.0,0.2734434]
[1746736209005,0.8262226,101650.0,101640.0,0.0767]
[1746736209206,0.9942226,101650.0,101640.0,0.0767]
[1746736209402,0.9942226,101650.0,101640.0,0.2734434]
[1746736210012,0.9942226,101650.0,101640.0,0.0387]
[1746736210213,0.9649026,101650.0,101640.0,0.001]
[1746736210616,0.8665226,101650.0,101640.0,0.001]
[1746736211319,1.0345226,101650.0,101640.0,0.001]
[1746736212220,1.0345226,101650.0,101640.0,0.0418]
[1746736212618,0.842124,101650.0,101640.0,0.0418]
[1746736212818,1.0345226,101650.0,101640.0,0.0418]
[1746736213113,0.674124,101650.0,101640.0,0.2780434]
[1746736213313,0.8262226,101650.0,101640.0,0.28902499]
[1746736213815,0.273024,101650.0,101640.0,0.28902499]
[1746736214018,0.4654226,101650.0,101640.0,0.28902696]
[1746736214214,0.273024,101650.0,101640.0,0.2780434]
[1746736214820,0.234324,101650.0,101640.0,0.2780434]
[1746736215114,0.234324,101650.0,101640.0,0.3193434]
[1746736215320,0.0376,101650.0,101640.0,0.3193434]
[1746736216520,0.234324,101650.0,101640.0,0.3193434]
[1746736217922,0.4267226,101650.0,101640.0,0.3193434]
[1746736218120,0.0376,101650.0,101640.0,0.4873434]
[1746736218419,0.2884477,101660.0,101650.0,0.196724]
[1746736218618,0.5209463,101660.0,101650.0,0.274824]
[1746736218819,0.5209463,101660.0,101650.0,0.370824]
[1746736219118,0.00245,101660.0,101650.0,1.0920226]
[1746736219322,0.00245,101660.0,101650.0,1.695524]
[1746736219517,0.00445,101660.0,101650.0,2.0579226]
[1746736219720,0.00445,101660.0,101650.0,2.0589226]
[1746736220123,0.00445,101660.0,101650.0,1.866524]
[1746736220524,0.2011547,101660.0,101650.0,1.770524]
[1746736220722,0.2401547,101660.0,101650.0,1.962244]
[1746736220922,0.00445,101660.0,101650.0,2.1546426]
[1746736222316,0.00445,101660.0,101650.0,1.962244]
[1746736222525,0.00445,101660.0,101650.0,2.1546426]
[1746736222723,0.00445,101660.0,101650.0,1.962244]
[1746736223222,0.00445,101660.0,101650.0,2.1546426]
[1746736223931,0.00445,101660.0,101650.0,1.7387426]
[1746736225032,0.00445,101660.0,101650.0,1.546344]
[1746736225334,0.0001,101670.0,101660.0,0.1967047]
[1746736225518,0.0001,101670.0,101660.0,1.2788033]
[1746736225718,0.2969314,101700.0,101690.0,0.1966466]
[1746736225923,0.3365314,101700.0,101690.0,0.2926066]
[1746736226125,0.3365314,101700.0,101690.0,0.4106066]
[1746736226930,0.3435314,101700.0,101690.0,0.4106066]
[1746736227226,0.3435314,101700.0,101690.0,0.42027035]
[1746736227537,0.3395314,101700.0,101690.0,0.42027035]
[1746736227732,0.3771314,101700.0,101690.0,0.42747492]
[1746736228231,0.3771314,101700.0,101690.0,0.59547492]
[1746736228433,0.3821314,101700.0,101690.0,0.59547492]
[1746736229026,0.93533,101700.0,101690.0,0.55637492]
[1746736229229,0.97503,101700.0,101690.0,0.38837492]
[1746736229432,0.7826314,101700.0,101690.0,0.38837492]
[1746736229729,0.97503,101700.0,101690.0,0.38837492]
[1746736229933,0.7826314,101700.0,101690.0,0.38837492]
[1746736230133,0.97503,101700.0,101690.0,0.38837492]
[1746736230329,0.7826314,101700.0,101690.0,0.38837492]
[1746736230529,0.97503,101700.0,101690.0,0.38837492]
[1746736230730,0.97503,101700.0,101690.0,0.29241492]
[1746736231028,0.7826314,101700.0,101690.0,0.38809492]
[1746736231229,0.97503,101700.0,101690.0,0.38809492]
[1746736231634,0.97503,101700.0,101690.0,0.14218457]
[1746736231834,0.97503,101700.0,101690.0,0.33883117]
[1746736232134,0.97503,101700.0,101690.0,0.24315117]
[1746736232332,0.97503,101700.0,101690.0,0.33883117]
[1746736232533,0.7826314,101700.0,101690.0,0.33883117]
[1746736232733,0.97503,101700.0,101690.0,0.33883117]
[1746736234034,0.97503,101700.0,101690.0,0.24315117]
[1746736234235,0.7826314,101700.0,101690.0,0.33883117]
[1746736234436,0.7826314,101700.0,101690.0,0.37673117]
[1746736234640,0.3445314,101700.0,101690.0,0.41403117]
[1746736235336,0.7053314,101700.0,101690.0,0.41403117]
[1746736235524,0.3445314,101700.0,101690.0,0.41403117]
[1746736235727,0.7053314,101700.0,101690.0,0.41403117]
[1746736235936,0.7427314,101700.0,101690.0,0.41403117]
[1746736236731,0.7427314,101700.0,101690.0,0.21738457]
[1746736236933,0.1966466,101690.0,101680.0,0.30243734]
[1746736237133,0.2746466,101690.0,101680.0,0.38023734]
[1746736237333,0.0406,101690.0,101680.0,0.93343594]
[1746736237535,0.5262245,101700.0,101690.0,0.1966466]
[1746736237846,0.9276245,101700.0,101690.0,0.3133466]
[1746736238331,0.9226245,101700.0,101690.0,0.3133466]
[1746736238732,0.9196245,101700.0,101690.0,0.3133466]
[1746736239039,0.9246245,101700.0,101690.0,0.3133466]
[1746736239237,1.1170231,101700.0,101690.0,0.3133466]
[1746736239439,0.9286245,101700.0,101690.0,0.3701266]
[1746736239735,0.1966466,101690.0,101680.0,0.24505054]
[1746736239934,0.4648452,101690.0,101680.0,0.41753054]
[1746736240237,0.8256452,101690.0,101680.0,0.41753054]
[1746736240640,0.8256452,101690.0,101680.0,0.17248]
[1746736240828,0.8256452,101690.0,101680.0,0.369146]
[1746736241032,0.6332466,101690.0,101680.0,0.369146]
[1746736241238,0.8256452,101690.0,101680.0,0.17248]
[1746736241441,0.9056452,101690.0,101680.0,0.09668]
[1746736242043,1.2939892,101690.0,101680.0,0.003]
[1746736242238,1.4619892,101690.0,101680.0,0.003]
[1746736242432,1.4639892,101690.0,101680.0,0.001]
[1746736243640,0.1966853,101670.0,101660.0,0.4685214]
[1746736243936,0.5574853,101670.0,101660.0,0.4685214]
[1746736244244,0.2351853,101670.0,101660.0,0.47861812]
[1746736245037,0.2351853,101670.0,101660.0,0.48061812]
[1746736245440,0.4641839,101670.0,101660.0,0.48161812]
[1746736245842,0.4641839,101670.0,101660.0,0.38593812]
[1746736246140,0.2717853,101670.0,101660.0,0.38593812]
[1746736246340,0.4641839,101670.0,101660.0,0.38593812]
[1746736247444,0.2717853,101670.0,101660.0,0.38593812]
[1746736248831,0.4641839,101670.0,101660.0,0.38593812]
[1746736249335,0.2717853,101670.0,101660.0,0.38593812]
[1746736250147,0.2351853,101670.0,101660.0,0.38593812]
[1746736250944,0.2351853,101670.0,101660.0,0.48605812]
[1746736251243,0.2351853,101670.0,101660.0,0.57605812]
[1746736252146,0.2351853,101670.0,101660.0,0.47593812]
[1746736252440,0.4275839,101670.0,101660.0,0.57605812]
[1746736252647,0.4656839,101670.0,101660.0,0.57605812]
[1746736253443,0.2732853,101670.0,101660.0,0.57605812]
[1746736253645,0.4656839,101670.0,101660.0,0.57605812]
[1746736253845,0.4656839,101670.0,101660.0,0.60296274]
[1746736254046,0.4656839,101670.0,101660.0,0.50284274]
[1746736254241,0.4656839,101670.0,101660.0,0.49131219]
[1746736254445,0.4656839,101670.0,101660.0,0.48746867]
[1746736254642,0.4656839,101670.0,101660.0,0.47593812]
[1746736254841,0.2732853,101670.0,101660.0,0.47593812]
[1746736255040,0.4656839,101670.0,101660.0,0.48746873]
[1746736255337,0.4656839,101670.0,101660.0,0.49131227]
[1746736255553,0.4656839,101670.0,101660.0,0.50284288]
[1746736255742,0.2732853,101670.0,101660.0,0.50284288]
[1746736255943,0.2732853,101670.0,101660.0,0.50284287]
[1746736256450,0.2732853,101670.0,101660.0,0.47593812]
[1746736256659,0.2732853,101670.0,101660.0,0.50284288]
[1746736257148,0.4656839,101670.0,101660.0,0.50284288]
[1746736257652,0.4656839,101670.0,101660.0,0.39746873]
[1746736257857,0.2351853,101670.0,101660.0,0.40131227]
[1746736258151,0.1966853,101670.0,101660.0,0.41284288]
[1746736258351,0.18746081,101670.0,101660.0,0.60524148]
[1746736258851,0.18746081,101670.0,101660.0,0.66524148]
[1746736259053,0.18746081,101670.0,101660.0,0.64986733]
[1746736259244,0.18746081,101670.0,101660.0,0.66524148]
[1746736259758,0.7402895,101680.0,101670.0,0.1966853]
[1746736259951,0.7402895,101680.0,101670.0,0.31891591]
[1746736260148,0.7402895,101680.0,101670.0,0.3073853]
[1746736260550,0.9326881,101680.0,101670.0,0.12223061]
[1746736260743,0.7766895,101680.0,101670.0,0.28011478]
[1746736260951,1.0500881,101680.0,101670.0,0.31591478]
[1746736261152,1.0500881,101680.0,101670.0,0.31591591]
[1746736261450,1.0500881,101680.0,101670.0,0.31975945]
[1746736261652,1.0500881,101680.0,101670.0,0.31591591]
[1746736261954,1.0500881,101680.0,101670.0,0.11923061]
[1746736261955,0.8576895,101680.0,101670.0,0.11923061]
[1746736262158,1.0500881,101680.0,101670.0,0.31591591]
[1746736263454,0.331319,101680.0,101670.0,0.31975945]
[1746736263659,0.8845176,101680.0,101670.0,0.31975907]
[1746736263859,0.692119,101680.0,101670.0,0.3043853]
[1746736265051,0.8845176,101680.0,101670.0,0.3043853]
[1746736265555,0.9235176,101680.0,101670.0,0.3043853]
[1746736267859,0.692119,101680.0,101670.0,0.3043853]
[1746736269153,0.1003,101700.0,101690.0,0.1966466]
[1746736269360,0.1392,101700.0,101690.0,0.2967666]
[1746736269554,0.6966273,101700.0,101690.0,0.4093666]
[1746736269750,0.4611,101700.0,101690.0,0.4093666]
[1746736269957,0.1003,101700.0,101690.0,0.7517652]
[1746736270153,0.1013,101700.0,101690.0,1.1297652]
[1746736270360,0.2979273,101700.0,101690.0,1.1297652]
[1746736270663,0.1013,101700.0,101690.0,1.1297652]
[1746736270856,0.1013,101700.0,101690.0,1.49804693]
[1746736271863,0.1013,101700.0,101690.0,1.30537122]
[1746736272059,0.1013,101700.0,101690.0,1.49776982]
[1746736272260,0.04145,101710.0,101700.0,0.1966273]
[1746736272261,0.00255,101710.0,101700.0,0.1966273]
[1746736272460,0.6431311,101730.0,101720.0,0.1965886]
[1746736272657,0.6431311,101730.0,101720.0,0.2967086]
[1746736272859,0.2823311,101730.0,101720.0,0.3680086]
[1746736273157,0.4747297,101730.0,101720.0,0.0713]
[1746736273359,0.8734297,101730.0,101720.0,0.3680086]
[1746736273559,0.6810311,101730.0,101720.0,0.17142]
[1746736273862,0.8734297,101730.0,101720.0,0.3680086]
[1746736274364,0.6810311,101730.0,101720.0,0.3680086]
[1746736274557,0.2331693,101730.0,101720.0,0.3680086]
[1746736274864,0.0003,101730.0,101720.0,1.33088831]
[1746736275069,0.2008693,101730.0,101720.0,1.49888831]
[1746736275359,0.3932679,101730.0,101720.0,0.34890111]
[1746736275566,0.8322679,101730.0,101720.0,0.34890111]
[1746736275764,0.8322679,101730.0,101720.0,0.24898111]
[1746736275962,0.8322679,101730.0,101720.0,0.2393]
[1746736276167,0.8282679,101730.0,101720.0,0.0713]
[1746736276362,0.8302679,101730.0,101720.0,0.0713]
[1746736276562,0.8282679,101730.0,101720.0,0.0713]
[1746736277065,0.6358693,101730.0,101720.0,0.0713]
[1746736277265,0.8282679,101730.0,101720.0,0.0713]
[1746736277464,0.8282679,101730.0,101720.0,0.2678886]
[1746736278267,0.2457641,101710.0,101700.0,0.3456957]
[1746736278468,0.4873188,101710.0,101700.0,0.20982]
[1746736278663,0.3674202,101710.0,101700.0,0.4064473]
[1746736278859,0.5598188,101710.0,101700.0,0.4064473]
[1746736279060,1.0886188,101710.0,101700.0,0.3693473]
[1746736279261,1.0886188,101710.0,101700.0,0.0728]
[1746736279464,1.0886188,101710.0,101700.0,0.2714273]
[1746736279669,0.8962202,101710.0,101700.0,0.2734273]
[1746736280270,0.7282202,101710.0,101700.0,0.2734273]
[1746736280963,0.6790641,101710.0,101700.0,0.2734273]
[1746736281170,0.6430641,101710.0,101700.0,0.2734273]
[1746736281466,0.6430641,101710.0,101700.0,0.2714273]
[1746736281666,0.8364627,101710.0,101700.0,0.0728]
[1746736281973,0.1966273,101700.0,101690.0,0.27232833]
[1746736282155,0.4930259,101700.0,101690.0,0.30552833]
[1746736282769,0.8538259,101700.0,101690.0,0.30552833]
[1746736283068,0.6614273,101700.0,101690.0,0.30752833]
[1746736283257,0.8538259,101700.0,101690.0,0.07598173]
[1746736283659,0.6614273,101700.0,101690.0,0.0685]
[1746736283860,0.8538259,101700.0,101690.0,0.0685]
[1746736284272,1.0218259,101700.0,101690.0,0.2651466]
[1746736284471,1.0218259,101700.0,101690.0,0.2671466]
[1746736284664,1.5642245,101700.0,101690.0,0.004]
[1746736284864,1.6625565,101700.0,101690.0,0.004]
[1746736287776,1.2777593,101700.0,101690.0,0.004]
[1746736287973,1.6625565,101700.0,101690.0,0.004]
[1746736290170,1.5786779,101700.0,101690.0,0.004]
[1746736290576,1.4701579,101700.0,101690.0,0.004]
[1746736290877,1.7713965,101700.0,101690.0,0.004]
[1746736291676,1.6625565,101700.0,101690.0,0.004]
[1746736291870,1.3862793,101700.0,101690.0,0.004]
[1746736292076,1.5786779,101700.0,101690.0,0.0721]
[1746736292873,1.4701579,101700.0,101690.0,0.0721]
[1746736293072,0.9194273,101700.0,101690.0,0.0721]
[1746736293270,1.1118259,101700.0,101690.0,0.0721]
[1746736294271,1.1118259,101700.0,101690.0,0.2687466]
[1746736294475,0.7586273,101700.0,101690.0,0.4611452]
[1746736294669,0.3978273,101700.0,101690.0,0.2687466]
[1746736294872,0.7586273,101700.0,101690.0,0.2687466]
[1746736295273,0.7830259,101700.0,101690.0,0.2687466]
[1746736295578,0.5906273,101700.0,101690.0,0.2687466]
[1746736298074,0.5906273,101700.0,101690.0,0.27609354]
[1746736298276,0.3608,101700.0,101690.0,0.46849214]
[1746736298976,0.5574273,101700.0,101690.0,0.46849214]
[1746736299176,0.5574273,101700.0,101690.0,0.63649214]
[1746736299376,0.3608,101700.0,101690.0,0.63649214]
[1746736300078,0.1966273,101700.0,101690.0,0.63649214]
[1746736300572,0.3608,101710.0,101700.0,0.1966273]
[1746736300882,0.557408,101710.0,101700.0,0.4923259]
[1746736301283,0.557408,101710.0,101700.0,0.2999273]
[1746736301580,0.558408,101710.0,101700.0,0.2999273]
[1746736301886,0.7508066,101710.0,101700.0,0.2999273]
[1746736302070,0.7853066,101710.0,101700.0,0.2999273]
[1746736302276,0.592908,101710.0,101700.0,0.2999273]
[1746736302576,0.7508066,101710.0,101700.0,0.2999273]
[1746736302776,0.558408,101710.0,101700.0,0.34219092]
[1746736303278,0.7853066,101710.0,101700.0,0.11106362]
[1746736303582,1.2253066,101710.0,101700.0,0.07656362]
[1746736303978,1.032908,101710.0,101700.0,0.07656362]
[1746736304294,1.3933066,101710.0,101700.0,0.07656362]
[1746736305076,1.200908,101710.0,101700.0,0.06503718]
[1746736305387,1.7541066,101710.0,101700.0,0.10966508]
[1746736306881,1.7541066,101710.0,101700.0,0.09429639]
[1746736307178,1.5861066,101710.0,101700.0,0.09813899]
[1746736307383,1.5861066,101710.0,101700.0,0.10966679]
[1746736307586,1.5861066,101710.0,101700.0,0.09813899]
[1746736307786,1.5861066,101710.0,101700.0,0.10966679]
[1746736307983,1.5861066,101710.0,101700.0,0.04226679]
[1746736308288,2.0448292,101710.0,101700.0,0.04226728]
[1746736308788,2.0448292,101710.0,101700.0,0.02689733]
[1746736309087,1.8524306,101710.0,101700.0,0.04226908]
[1746736309291,1.8524306,101710.0,101700.0,0.04226835]
[1746736309586,1.8524306,101710.0,101700.0,0.04226849]
[1746736309787,1.771312,101710.0,101700.0,0.0268975]
[1746736310088,1.7957106,101710.0,101700.0,0.0268975]
[1746736310284,1.6844306,101710.0,101700.0,0.0268975]
[1746736310485,1.7957906,101710.0,101700.0,0.0268975]
[1746736310878,1.7987906,101710.0,101700.0,0.0268975]
[1746736311080,1.8027906,101710.0,101700.0,0.0268975]
[1746736311486,1.8027906,101710.0,101700.0,0.02689676]
[1746736312086,1.8027906,101710.0,101700.0,0.0268975]
[1746736312882,1.8027906,101710.0,101700.0,0.01152891]
[1746736313193,1.8027906,101710.0,101700.0,0.19490016]
[1746736313194,1.7039066,101710.0,101700.0,0.19490016]
[1746736313383,1.7039066,101710.0,101700.0,0.19490007]
[1746736313584,1.7039066,101710.0,101700.0,0.19489997]
[1746736313785,1.7039066,101710.0,101700.0,0.23029997]
[1746736313986,1.9946292,101710.0,101700.0,0.08992396]
[1746736314185,0.1966466,101690.0,101680.0,5e-08]
[1746736314483,0.196666,101680.0,101670.0,0.0521714]
[1746736314680,1.2462646,101680.0,101670.0,0.0521714]
[1746736314878,0.663866,101680.0,101670.0,0.06754721]
[1746736315092,0.557466,101680.0,101670.0,0.30033087]
[1746736315589,0.557466,101680.0,101670.0,0.30033089]
[1746736315794,0.557466,101680.0,101670.0,0.30033069]
[1746736315991,0.557466,101680.0,101670.0,0.30033071]
[1746736316795,0.557466,101680.0,101670.0,0.30233071]
[1746736317893,0.559916,101680.0,101670.0,0.30233071]
[1746736318084,0.559916,101680.0,101670.0,0.30233035]
[1746736318284,0.559916,101680.0,101670.0,0.2889567]
[1746736318690,0.199116,101680.0,101670.0,0.3043304]
[1746736318893,0.199116,101680.0,101670.0,0.30433036]
[1746736319094,0.199116,101680.0,101670.0,0.47233036]
[1746736319302,0.199116,101680.0,101670.0,0.4723302]
[1746736319589,0.559916,101680.0,101670.0,0.4569567]
[1746736319796,0.199116,101680.0,101670.0,0.47233022]
[1746736320093,0.559916,101680.0,101670.0,0.27564447]
[1746736320302,0.235316,101680.0,101670.0,0.30432977]
[1746736320490,0.199116,101680.0,101670.0,0.66512977]
[1746736321302,0.199116,101680.0,101670.0,0.83312977]
[1746736321487,0.559916,101680.0,101670.0,0.47232972]
[1746736321993,0.559916,101680.0,101670.0,0.4569567]
[1746736322297,0.559916,101680.0,101670.0,0.0922714]
[1746736322596,0.596116,101680.0,101670.0,0.2889567]
[1746736322799,0.559916,101680.0,101670.0,0.4813553]
[1746736323096,0.559916,101680.0,101670.0,0.2889567]
[1746736323295,0.4815598,101700.0,101670.0,1.1329059]
[1746736323496,0.4100527,101710.0,101700.0,0.1966273]
[1746736323497,0.6411693,101710.0,101700.0,0.1966273]
[1746736323699,0.2458693,101710.0,101700.0,0.1966273]
[1746736323993,0.2458693,101710.0,101700.0,0.6632273]
[1746736324300,0.1967166,101710.0,101700.0,0.8312273]
[1746736324997,0.2007166,101710.0,101700.0,0.8312273]
[1746736325291,0.0003,101730.0,101720.0,0.1965886]
[1746736325496,0.1968693,101730.0,101720.0,0.2301886]
[1746736325694,0.1968693,101730.0,101720.0,0.3033886]
[1746736326200,0.1968693,101730.0,101720.0,0.6733886]
[1746736326603,0.5576693,101730.0,101720.0,0.3033886]
[1746736326811,0.5596693,101730.0,101720.0,0.31058614]
[1746736327493,0.5596693,101730.0,101720.0,0.11399754]
[1746736327694,0.1998693,101730.0,101720.0,0.50298474]
[1746736328099,0.1988693,101730.0,101720.0,0.31058614]
[1746736328294,0.5576693,101730.0,101720.0,0.47958614]
[1746736328694,0.1968693,101730.0,101720.0,0.47958614]
[1746736329089,0.1968693,101730.0,101720.0,0.31158614]
[1746736329409,0.00255,101740.0,101730.0,0.1965693]
[1746736329595,0.00255,101740.0,101730.0,0.5344693]
[1746736329903,0.1991,101740.0,101730.0,0.5442562]
[1746736330099,0.1991,101740.0,101730.0,0.7122562]
[1746736330300,0.1991,101740.0,101730.0,0.9046548]
[1746736330601,0.1991,101740.0,101730.0,0.7122562]
[1746736331007,0.2001,101740.0,101730.0,0.4422562]
[1746736331306,0.2001,101740.0,101730.0,0.2742562]
[1746736331490,0.3944986,101740.0,101730.0,0.0679]
[1746736331692,0.2354,101740.0,101730.0,0.0679]
[1746736332103,0.2354,101740.0,101730.0,0.2644693]
[1746736332595,0.00555,101740.0,101730.0,0.2644693]
[1746736332793,0.00555,101740.0,101730.0,0.9475625]
[1746736332996,0.00555,101740.0,101730.0,0.7551639]
[1746736333201,0.00555,101740.0,101730.0,0.9231639]
[1746736333506,0.2021,101740.0,101730.0,0.7719893]
[1746736333700,0.2021,101740.0,101730.0,0.9643879]
[1746736333899,0.2021,101740.0,101730.0,0.7719893]
[1746736334100,0.2021,101740.0,101730.0,0.6568679]
[1746736334610,0.5629,101740.0,101730.0,0.0679]
[1746736334794,1.2108986,101740.0,101730.0,0.0679]
[1746736335103,1.3788986,101740.0,101730.0,0.0679]
[1746736335302,1.0809,101740.0,101730.0,0.0679]
[1746736335506,0.7309,101740.0,101730.0,0.4568679]
[1746736335697,0.7309,101740.0,101730.0,0.2644693]
[1746736336200,0.5629,101740.0,101730.0,0.2644693]
[1746736336699,0.7552986,101740.0,101730.0,0.0679]
[1746736336998,0.00555,101740.0,101730.0,0.2644693]
[1746736337204,0.00555,101740.0,101730.0,0.9856679]
[1746736337407,0.00555,101740.0,101730.0,0.7932693]
[1746736337797,0.00555,101740.0,101730.0,0.9856679]
[1746736338300,0.00555,101740.0,101730.0,0.8176679]
[1746736339099,0.00555,101740.0,101730.0,0.9856679]
[1746736339708,0.2021,101740.0,101730.0,0.7932693]
[1746736339903,0.00555,101740.0,101730.0,0.9856679]
[1746736340106,0.00555,101740.0,101730.0,0.8176679]
[1746736340609,0.00555,101740.0,101730.0,1.0276679]
[1746736340796,0.00555,101740.0,101730.0,0.6252693]
[1746736341001,0.00555,101740.0,101730.0,1.4935679]
[1746736341304,0.2001,101740.0,101730.0,1.4935679]
[1746736341701,0.00355,101740.0,101730.0,1.3011693]
[1746736342001,0.00255,101740.0,101730.0,1.3011693]
[1746736342204,0.1991,101740.0,101730.0,1.4945679]
[1746736342405,0.1991,101740.0,101730.0,1.3021693]
[1746736342606,0.1991,101740.0,101730.0,1.4945679]
[1746736343206,0.1991,101740.0,101730.0,1.3021693]
[1746736343999,0.1991,101740.0,101730.0,0.8862693]
[1746736344205,0.00255,101740.0,101730.0,1.0786679]
[1746736344405,0.2456469,101760.0,101750.0,0.1965307]
[1746736344905,0.2456469,101760.0,101750.0,0.2678307]
[1746736345303,0.6433469,101760.0,101750.0,0.2678307]
[1746736346011,0.0003,101770.0,101760.0,0.1965113]
[1746736346200,0.196792,101770.0,101760.0,0.3018113]
[1746736347212,0.233692,101770.0,101760.0,0.4942099]
[1746736347408,0.235692,101770.0,101760.0,0.3018113]
[1746736347811,0.236692,101770.0,101760.0,0.3018113]
[1746736349104,0.5970906,101770.0,101760.0,0.1053]
[1746736349318,0.9917906,101770.0,101760.0,0.3018113]
[1746736349509,0.438592,101770.0,101760.0,0.1053]
[1746736349709,0.9917906,101770.0,101760.0,0.1053]
[1746736349911,0.9917906,101770.0,101760.0,0.0698]
[1746736350114,0.799392,101770.0,101760.0,0.0698]
[1746736350516,0.9917906,101770.0,101760.0,0.0698]
[1746736350720,0.799392,101770.0,101760.0,0.0698]
[1746736351215,0.9917906,101770.0,101760.0,0.2663113]
[1746736351412,0.799392,101770.0,101760.0,0.2663113]
[1746736351717,0.2082,101770.0,101760.0,0.2663113]
[1746736351917,0.404692,101770.0,101760.0,0.4587099]
[1746736352111,0.236692,101770.0,101760.0,0.4587099]
[1746736352311,0.236692,101770.0,101760.0,0.2663113]
[1746736352710,0.597492,101770.0,101760.0,0.2663113]